[Event "1000 GM Labor Day Super Swiss 2024"]
[Site "San Jose"]
[Date "2024.09.02"]
[Round "6.1"]
[White "Cordova, Emilio"]
[Black "Schitco, Ivan"]
[Result "1-0"]
[Annotator "TA"]
[ECO "A17"]
[WhiteElo "2519"]
[BlackElo "2518"]
[PlyCount "41"]
[EventDate "2024.08.30"]
[EventType "swiss"]
[EventCountry "USA"]
[SourceTitle "playchess.com"]
[Source "ChessBase"]
[SourceQuality "1"]
[TimeControl "5400+30"]

{[%evp 9,41,0,14,7,10,12,16,7,0,0,15,0,59,39,52,39,46,68,53,64,60,50,70,79,246,264,229,248,349,355,477,472,617,624]} 1. Nf3 {[%emt 0:02:01]} d5 {[%emt 0:00:13]} 2. e3 {[%emt 0:00:56]} Nf6 {[%emt 0:00:20]} 3. c4 {[%emt 0:00:19]} e6 {[%emt 0:00:55]} 4. Nc3 {[%emt 0:00:58]} dxc4 {[%emt 0:00:55]} 5. Bxc4 {[%emt 0:00:21]} a6 {[%emt 0:00:05]} 6. Be2 {[%emt 0:07:35]} c5 {[%emt 0:05:49]} 7. O-O {[%emt 0:01:59]} Nc6 {[%emt 0:00:53]} 8. b3 {[%emt 0:00:19] The position is equal.} Be7 {[%emt 0:00:58]} 9. Bb2 {[%emt 0:00:09]} O-O {[%emt 0:00:49]} 10. Rc1 {[%emt 0:00:10]} b6 {[%emt 0:25:03]} ({Black should play} 10... b5 $11) 11. d4 $14 {[%emt 0:14:48]} cxd4 {[%emt 0:08:44]} 12. Na4 {[%emt 0:00:26]} b5 {[%emt 0:10:53]} 13. Rxc6 {[%emt 0:01:16]} bxa4 {[%emt 0:01:19]} 14. Bxd4 {[%emt 0:01:38]} axb3 {[%emt 0:03:34]} 15. Qxb3 {[%emt 0:00:48]} Qd5 {[%emt 0:05:45]} 16. Rc4 {[%emt 0:11:57] Threatens to win with Ne5. White is much more active. The black rooks are passive.} Qf5 {[%emt 0:15:35] A mistake that costs the game.} (16... Qb5 $16) 17. Bd3 $18 {[%emt 0:07:21][%cal Be2d3,Bd3e4,Be4h7][%mdl 32]} Qa5 {[%emt 0:04:47] [#]} 18. Bxf6 $1 {[%emt 0:08:18]} gxf6 {[%emt 0:04:53]} (18... Bxf6 $142 19. Be4 Bd7 (19... Ra7 $2 20. Qb8 $18) 20. Bxa8 Rxa8) 19. Be4 {[%emt 0:01:40]} Ra7 {[%emt 0:00:31]} 20. Qb8 {[%emt 0:00:56][%csl LRa7,LRc8]} Qb5 {[%emt 0:04:25]} 21. Bxh7+ {[%emt 0:00:39] Weighted Error Value: White=0.00 (flawless) /Black=0.47.  Loses game:     	---       	Black=1      Mistake:       	---       	Black=2      Inaccurate:     	---       	Black=2      OK:         	White=11    	Black=4      Best:        	White=1     	---        Strong:       	White=1     	---} (21. Qxa7 Qxc4 22. Qxe7 Qxe4 $16) 1-0

[Event "1000 GM Labor Day Super Swiss 2024"]
[Site "San Jose"]
[Date "2024.09.02"]
[Round "6.2"]
[White "Quesada Perez, Yasser"]
[Black "Corrales Jimenez, Fidel"]
[Result "1/2-1/2"]
[Annotator "TA"]
[ECO "C42"]
[WhiteElo "2581"]
[BlackElo "2564"]
[PlyCount "20"]
[EventDate "2024.08.30"]
[EventType "swiss"]
[EventCountry "USA"]
[SourceTitle "playchess.com"]
[Source "ChessBase"]
[SourceQuality "1"]
[TimeControl "5400+30"]

{[%evp 15,20,13,4,9,14,11,13]} 1. e4 {[%emt 0:01:24]} e5 {[%emt 0:02:24]} 2. Nf3 {[%emt 0:00:11]} Nf6 {[%emt 0:00:09]} 3. Nxe5 {[%emt 0:00:13]} d6 {[%emt 0:00:04]} 4. Nf3 {[%emt 0:00:11]} Nxe4 {[%emt 0:00:08]} 5. Qe2 {[%emt 0:00:27]} Qe7 {[%emt 0:00:07]} 6. d3 {[%emt 0:00:11]} Nf6 {[%emt 0:00:03]} 7. Nc3 {[%emt 0:00:22]} c6 {[%emt 0:00:11]} 8. Bg5 {[%emt 0:00:12]} Qxe2+ {[%emt 0:00:06] The position is equal.} 9. Bxe2 {[%emt 0:00:05]} Be7 {[%emt 0:00:06]} 10. O-O-O {[%emt 0:00:22]} h6 {[%emt 0:00:16] An uneventful encounter.   OK:         	---       	Black=1} 1/2-1/2

[Event "1000 GM Labor Day Super Swiss 2024"]
[Site "San Jose"]
[Date "2024.09.02"]
[Round "6.3"]
[White "Macovei, Andrei"]
[Black "Harsha Bharathakoti"]
[Result "1-0"]
[Annotator "TA"]
[ECO "C54"]
[WhiteElo "2466"]
[BlackElo "2550"]
[PlyCount "73"]
[EventDate "2024.08.30"]
[EventType "swiss"]
[EventCountry "USA"]
[SourceTitle "playchess.com"]
[Source "ChessBase"]
[SourceQuality "1"]
[TimeControl "5400+30"]

{[%evp 11,73,19,22,24,28,1,12,20,37,10,17,0,46,-29,0,0,30,26,35,37,76,47,127,67,65,56,122,127,152,142,135,152,165,156,164,167,160,152,154,162,116,114,177,178,304,293,320,316,307,239,280,280,328,352,358,353,345,323,349,341,664,664,29996,29997]} 1. e4 {[%emt 1:31:00]} e5 {[%emt 0:03:12]} 2. Nf3 {[%emt 0:00:00]} Nc6 {[%emt 0:00:07]} 3. Bc4 {[%emt 0:00:00]} Bc5 {[%emt 0:00:49]} 4. c3 {[%emt 0:00:00]} Nf6 {[%emt 0:00:07]} 5. d3 {[%emt 0:00:00]} d6 {[%emt 0:00:36]} 6. O-O {[%emt 0:00:00]} a6 {[%emt 0:01:41]} 7. a4 {[%emt 0:00:00]} Ba7 {[%emt 0:00:24]} 8. Re1 {[%emt 0:00:00]} Ng4 {[%emt 0:00:53]} 9. Re2 {[%emt 0:00:00] The position is equal.} Qf6 {[%emt 0:00:09]} 10. Qe1 {[%emt 0:00:00]} O-O {[%emt 0:06:22]} 11. Nbd2 {[%emt 0:00:00]} (11. h3 {simplifies} Nh6 12. Be3 Bxe3 13. Rxe3 Kh8 14. Nbd2) 11... Nd8 {[%emt 0:21:54]} (11... Qg6 $11 {is more appropriate.}) 12. g3 {[%emt 0:00:00]} (12. h3 $14) 12... Be6 {[%emt 0:12:31]} 13. Kg2 {[%emt 0:00:00]} b5 {[%emt 0:03:38]} 14. Bxe6 {[%emt 0:00:00]} Nxe6 {[%emt 0:05:20]} 15. h3 {[%emt 0:00:00]} Nh6 {[%emt 0:08:00]} 16. Nb3 {[%emt 0:00:00]} Rfb8 {[%emt 0:07:46]} (16... Qg6 $14) 17. axb5 {[%emt 0:00:00]} ({Better is} 17. Na5 $16) 17... axb5 $14 {[%emt 0:00:30]} 18. Qd1 {[%emt 0:00:00] Active counter play!} c5 {[%emt 0:04:59]} (18... g5 $1 $14) 19. Be3 $16 {[%emt 0:00:00]} Kh8 {[%emt 0:00:44]} 20. d4 {[%emt 0:00:00]} exd4 {[%emt 0:01:56]} 21. cxd4 {[%emt 0:00:00][%cal Bc3d4,Bd4d5][%mdl 32]} c4 {[%emt 0:07:37]} 22. d5 {[%emt 0:00:00][%csl LRa7,LRe6]} Bxe3 {[%emt 0:00:17]} 23. Rxa8 {[%emt 0:00:00]} (23. dxe6 Rxa1 24. Nxa1 (24. Qxa1 Bb6 $15) 24... Bc5 $15) 23... Rxa8 {[%emt 0:00:06]} 24. Rxe3 {[%emt 0:00:00][%cal Be2e3,Be3b3,Bb3b5][%mdl 32]} (24. dxe6 Ba7 $16) 24... Nf4+ {[%emt 0:06:04]} 25. gxf4 {[%emt 0:00:00]} cxb3 {[%emt 0:00:03]} 26. f5 {[%emt 0:00:00] Prevents Qg6+.} (26. Rxb3 $6 Qg6+ 27. Kf1 (27. Ng5 $2 f6 $19) 27... Qxe4 $11) 26... Qxb2 {[%emt 0:01:34]} (26... g6 $16) 27. Rxb3 $18 {[%emt 0:00:00]} ({Resist} 27. Qxb3 Qxb3 28. Rxb3 f6 $16) 27... Qa2 {[%emt 0:01:25]} (27... Qf6 $142) 28. Rxb5 {[%emt 0:00:00]} Qc4 {[%emt 0:00:21]} 29. Qb1 {[%emt 0:00:00]} Rg8 {[%emt 0:05:02]} 30. Rb4 {[%emt 0:04:18]} Qc5 {[%emt 0:00:47]} 31. Ng5 {[%emt 0:00:28]} f6 {[%emt 0:00:32]} 32. Ne6 {[%emt 0:00:11]} Qc3 {[%emt 0:00:31]} 33. Rb3 {[%emt 0:03:04]} Qc8 {[%emt 0:00:12]} 34. Rb7 {[%emt 0:01:26]} Qe8 {[%emt 0:00:38] Black is weak on the light squares} 35. Qb5 {[%emt 0:02:11]} Qa8 $2 {[%emt 0:00:40]} (35... Qxb5 36. Rxb5 g6 37. fxg6 Rxg6+ 38. Kf3 f5) 36. Qd7 {[%emt 0:01:15]} Qa6 {[%emt 0:00:02] [#]} 37. Rb8 $3 {[%emt 0:00:30][%mdl 512] Weighted Error Value: White=0.11 (very precise) /Black=0.56.  Mistake:       	White=2     	Black=6      Inaccurate:     	White=3     	Black=4      OK:         	White=15    	Black=6      Best:        	White=3     	---} 1-0

[Event "1000 GM Labor Day Super Swiss 2024"]
[Site "San Jose"]
[Date "2024.09.02"]
[Round "6.4"]
[White "Mikaelyan, Arman"]
[Black "Sheng, Joshua"]
[Result "1/2-1/2"]
[Annotator "TA"]
[ECO "C60"]
[WhiteElo "2529"]
[BlackElo "2474"]
[PlyCount "120"]
[EventDate "2024.08.30"]
[EventType "swiss"]
[EventCountry "USA"]
[SourceTitle "playchess.com"]
[Source "ChessBase"]
[SourceQuality "1"]
[TimeControl "5400+30"]

{[%evp 31,120,0,-6,-12,0,-9,-14,-24,-5,-23,0,-12,-8,-11,-15,-29,0,0,0,0,0,0,24,18,35,34,41,39,43,43,45,43,43,43,43,8,8,0,0,0,8,8,8,0,59,53,77,52,58,58,58,58,58,58,104,104,127,75,75,75,75,75,75,75,75,75,75,75,75,76,78,72,83,83,83,83,83,83,83,83,83,83,83,83,83,83,83,83,83,83,83]} 1. e4 {[%emt 0:01:40]} e5 {[%emt 0:00:38]} 2. Nf3 {[%emt 0:00:23]} Nc6 {[%emt 0:00:05]} 3. Bb5 {[%emt 0:00:25]} Nge7 {[%emt 0:02:07]} 4. c3 {[%emt 0:04:21]} d5 {[%emt 0:06:36]} 5. Nxe5 {[%emt 0:07:20]} dxe4 {[%emt 1:23:34]} 6. d4 {[%emt 0:04:28] C60: Ruy Lopez: Unusual Black 3rd moves and 3...g6.} exd3 {[%emt 0:00:00]} 7. Qf3 {[%emt 0:03:13]} Be6 {[%emt 0:00:00]} 8. O-O {[%emt 0:01:49]} Qd5 {[%emt 0:00:00]} 9. Qxd5 {[%emt 0:03:59]} Bxd5 {[%emt 0:00:00]} 10. Nxd3 {[%emt 0:02:09]} a6 {[%emt 0:00:00]} 11. Ba4 {[%emt 0:00:39]} Bc4 {[%emt 0:00:00]} 12. Rd1 {[%emt 0:02:09]} O-O-O {[%emt 0:00:00]} 13. Nf4 {[%emt 0:01:51]} Ng6 {[%emt 0:00:00]} 14. Rxd8+ {[%emt 0:07:09]} Nxd8 {[%emt 0:00:00]} 15. Nxg6 {[%emt 0:01:12]} hxg6 {[%emt 0:00:00]} 16. Nd2 {[%emt 0:01:11]} Bd3 $146 {[%emt 0:00:00]} ({Predecessor:} 16... Be6 17. Nf3 Bd6 18. h3 f6 19. Be3 g5 20. Ne1 Bf5 21. Bc2 Bd7 {½-½ Trois,F (2310)-Rubinetti,J (2380) Porto Alegre m 1976 (4)}) 17. Nf3 {[%emt 0:02:34]} Bd6 {[%emt 0:00:00]} 18. g3 {[%emt 0:01:05]} f6 {[%emt 0:00:00]} 19. Be3 {[%emt 0:01:48]} g5 {[%emt 0:00:00]} 20. Bb3 {[%emt 0:03:30]} g4 {[%emt 0:00:00]} 21. Nd2 {[%emt 0:01:13]} Bf5 {[%emt 0:00:00]} 22. Nc4 {[%emt 0:05:34]} Nc6 {[%emt 0:00:00]} 23. Rd1 {[%emt 0:06:13]} Rd8 {[%emt 0:00:00]} 24. Nxd6+ {[%emt 0:01:42]} Rxd6 {[%emt 0:00:00]} 25. Bf4 {[%emt 0:05:26]} Rxd1+ {[%emt 0:00:00]} 26. Bxd1 {[%emt 0:00:06]} g5 {[%emt 0:00:00]} 27. Be3 {[%emt 0:00:42]} Ne5 {[%emt 0:00:00]} 28. Bd4 {[%emt 0:00:33]} b6 {[%emt 0:00:00]} 29. b4 {[%emt 0:09:41]} Nf3+ {[%emt 0:00:00]} 30. Bxf3 {[%emt 0:04:06]} gxf3 {[%emt 0:00:00]} 31. h4 {[%emt 0:00:42]} Bd3 {[%emt 0:00:00]} 32. g4 {[%emt 0:00:51]} (32. Bxf6 g4 $16) 32... gxh4 {[%emt 0:00:20]} 33. Bxf6 {[%emt 0:00:26]} Bc4 {[%emt 0:00:12]} 34. Bxh4 {[%emt 0:09:05]} Bxa2 {[%emt 0:00:16]} 35. Kh2 {[%emt 0:00:07]} Bd5 {[%emt 0:04:56]} 36. Kg3 {[%emt 0:00:08]} Kd7 {[%emt 0:03:56]} 37. Bg5 {[%emt 0:02:30]} b5 {[%emt 0:01:56]} ({Black should play} 37... a5 $11) 38. Kf4 {[%emt 0:01:47]} Kd6 {[%emt 0:01:13]} 39. Bf6 {[%emt 0:01:33]} Ke6 {[%emt 0:00:24]} 40. Bd4 {[%emt 0:00:50]} Kf7 {[%emt 0:01:01]} 41. Ke5 {[%emt 0:00:26]} Be6 {[%emt 0:00:15]} 42. g5 {[%emt 0:00:26]} Bc4 {[%emt 0:00:10] [#]} (42... Bc8 $1 $14) 43. Ke4 $1 $16 {[%emt 0:00:40]} Kg6 {[%emt 0:00:38] [#]} 44. Be3 {[%emt 0:00:14]} ({Much less strong is} 44. Kxf3 Kxg5 45. Ke4 c6 $14) (44. Bf6 $142 $1) 44... Be2 $16 {[%emt 0:00:54]} 45. Kd5 {[%emt 0:00:11]} Bc4+ {[%emt 0:03:49]} 46. Kc6 {[%emt 0:00:05]} Kf5 {[%emt 0:00:00]} 47. Kxc7 {[%emt 0:00:09]} Bd3 {[%emt 0:00:00]} 48. Kb6 {[%emt 0:00:07]} Bf1 {[%emt 0:00:00]} 49. Kxa6 {[%emt 0:00:05]} Be2 {[%emt 0:00:00]} 50. Kb6 {[%emt 0:06:57]} Bf1 {[%emt 0:00:00]} 51. Kc6 {[%emt 0:00:00]} Be2 {[%emt 0:00:00]} 52. Kd6 {[%emt 0:01:00]} Bf1 {[%emt 0:00:00]} 53. Ke7 {[%emt 0:00:00]} Bc4 {[%emt 0:00:00]} 54. Kf8 {[%emt 0:00:00]} Kg6 {[%emt 0:00:00]} 55. Bc1 {[%emt 0:00:00]} Bb3 {[%emt 0:00:00]} 56. Ke7 {[%emt 0:00:00]} Kf5 {[%emt 0:00:00]} 57. Kd6 {[%emt 0:00:00]} Bc4 {[%emt 0:00:00]} 58. Kc5 {[%emt 0:00:00]} Bf1 {[%emt 0:00:00]} 59. Kd4 {[%emt 0:00:00]} Be2 {[%emt 0:00:00]} 60. Bd2 {[%emt 0:00:00]} Bf1 {[%emt 0:00:00]} 1/2-1/2

[Event "1000 GM Labor Day Super Swiss 2024"]
[Site "San Jose"]
[Date "2024.09.02"]
[Round "6.5"]
[White "Delgado Ramirez, Neuris"]
[Black "Koustav Chatterjee"]
[Result "1/2-1/2"]
[Annotator "TA"]
[ECO "C77"]
[WhiteElo "2485"]
[BlackElo "2524"]
[PlyCount "53"]
[EventDate "2024.08.30"]
[EventType "swiss"]
[EventCountry "USA"]
[SourceTitle "playchess.com"]
[Source "ChessBase"]
[SourceQuality "1"]
[TimeControl "5400+30"]

{[%evp 12,53,15,0,0,0,0,0,0,0,0,0,16,8,29,37,36,27,34,-2,15,22,20,24,20,17,17,16,14,7,22,2,2,2,2,2,4,4,7,0,7,0,6,0]} 1. e4 {[%emt 0:25:54]} e5 {[%emt 0:00:05]} 2. Nf3 {[%emt 0:00:12]} Nc6 {[%emt 0:00:06]} 3. Bb5 {[%emt 0:00:10]} a6 {[%emt 0:00:05]} 4. Ba4 {[%emt 0:00:07]} Nf6 {[%emt 0:00:05]} 5. d3 {[%emt 0:00:05]} b5 {[%emt 0:00:12]} 6. Bb3 {[%emt 0:00:09]} Bc5 {[%emt 0:00:06]} 7. a4 {[%emt 0:00:42]} b4 {[%emt 0:03:44]} 8. O-O {[%emt 0:01:57][%cal Of3e5]} d6 {[%emt 0:01:27]} 9. a5 {[%emt 0:01:45]} O-O {[%emt 0:00:53]} 10. Be3 {[%emt 0:01:14]} Bxe3 {[%emt 0:07:15]} 11. fxe3 {[%emt 0:00:06]} Ne7 {[%emt 0:01:13]} 12. Qe1 {[%emt 0:01:22]} c5 {[%emt 0:07:24]} 13. Nbd2 {[%emt 0:03:35][%cal Bb1d2,Bd2c4,Bc4b6][%mdl 32]} Nc6 {[%emt 0:02:14]} 14. Nc4 {[%emt 0:00:28]} Be6 {[%emt 0:04:40]} 15. Ba4 {[%emt 0:04:09]} Qc7 {[%emt 0:03:57]} ({Don't play} 15... Nxa5 16. Nxa5 Qxa5 17. Bc6 $14) 16. Nb6 {[%emt 0:02:19]} Rad8 {[%emt 0:02:07]} 17. Bxc6 {[%emt 0:00:30]} Qxc6 {[%emt 0:00:05]} 18. Ng5 {[%emt 0:01:51][%cal Of1f6] [#] Black must now prevent Rxf6! A dynamic duo of knights. The position is equal.} h6 {[%emt 0:04:35]} 19. Nxe6 {[%emt 0:00:51]} fxe6 {[%emt 0:00:04]} 20. Qg3 {[%emt 0:03:29]} Kh7 {[%emt 0:03:29]} 21. b3 {[%emt 0:00:45]} Rf7 {[%emt 0:04:24]} 22. Rf3 {[%emt 0:00:25]} Rdf8 {[%emt 0:01:57]} 23. Raf1 {[%emt 0:01:02]} Qc7 {[%emt 0:05:57]} 24. Qh3 {[%emt 0:01:30]} Qe7 {[%emt 0:01:09]} 25. Qg3 {[%emt 0:00:30]} Qc7 {[%emt 0:00:05]} 26. Qh3 {[%emt 0:00:18]} Qe7 {[%emt 0:00:04]} 27. Qg3 {[%emt 0:00:05] Weighted Error Value: White=0.05 (flawless) /Black=0.04 (flawless) .  Inaccurate:     	White=1     	---        OK:         	White=10    	Black=13} 1/2-1/2

[Event "1000 GM Labor Day Super Swiss 2024"]
[Site "San Jose"]
[Date "2024.09.02"]
[Round "6.6"]
[White "Bansal, Advay"]
[Black "Batchuluun, Tsegmed"]
[Result "1/2-1/2"]
[Annotator "TA"]
[ECO "C54"]
[WhiteElo "2234"]
[BlackElo "2458"]
[PlyCount "125"]
[EventDate "2024.08.30"]
[EventType "swiss"]
[EventCountry "USA"]
[SourceTitle "playchess.com"]
[Source "ChessBase"]
[SourceQuality "1"]
[TimeControl "5400+30"]

{[%evp 27,125,0,0,0,0,0,0,-11,-15,-44,0,-55,-54,-65,-64,-64,-57,-63,-53,-66,0,-91,-31,-128,-64,-111,-121,-125,-76,-145,-108,-102,-107,-107,-101,-115,-119,-131,-119,-146,-134,-166,-151,-139,-139,-137,-133,-172,-168,-171,-155,-169,-162,-188,-132,-124,0,-189,0,-229,-162,-160,-143,-160,-156,-189,-186,-179,-39,-8,-21,-33,0,0,0,0,0,0,0,0,0,0,0,0,0,0,0,0,0,0,0,0,0,0,0,0,0,0,0,0]} 1. e4 {[%emt 0:00:00]} e5 {[%emt 0:01:40]} 2. Nf3 {[%emt 0:00:08]} Nc6 {[%emt 0:00:46]} 3. Bc4 {[%emt 0:00:08]} Bc5 {[%emt 0:00:03]} 4. O-O {[%emt 0:00:20]} Nf6 {[%emt 0:00:04]} 5. d3 {[%emt 0:00:07]} d6 {[%emt 0:00:04]} 6. c3 {[%emt 0:00:09]} a5 {[%emt 0:00:04]} 7. Re1 {[%emt 0:00:14]} O-O {[%emt 0:00:05]} 8. h3 {[%emt 0:00:04]} h6 {[%emt 0:00:04]} 9. Nbd2 {[%emt 0:00:14]} Be6 {[%emt 0:00:15]} 10. Bb5 {[%emt 0:00:04]} Qb8 {[%emt 0:00:23]} 11. Bxc6 {[%emt 0:00:07]} bxc6 {[%emt 0:00:04]} 12. d4 {[%emt 0:00:06]} exd4 {[%emt 0:01:26]} 13. cxd4 {[%emt 0:00:05]} Bb6 {[%emt 0:00:13]} 14. a4 {[%emt 0:00:05]} Qa7 {[%emt 0:01:28]} 15. Ra3 {[%emt 0:02:29]} Bxd4 {[%emt 0:05:55]} 16. Nxd4 {[%emt 0:00:33]} Qxd4 {[%emt 0:00:06]} 17. Qc2 {[%emt 0:00:23]} c5 {[%emt 0:13:41]} 18. Rae3 {[%emt 0:13:16]} (18. e5 {with more complications.} dxe5 19. Rd3 Bf5 20. Rxd4 Bxc2 21. Rc4) 18... Nd7 {[%emt 0:14:28]} 19. b3 {[%emt 0:02:49]} (19. Rg3 $11) 19... Qb4 $15 {[%emt 0:01:14]} 20. Bb2 {[%emt 0:02:24]} f6 {[%emt 0:00:13]} 21. f4 {[%emt 0:04:31]} Rab8 {[%emt 0:09:54]} 22. Ba1 {[%emt 0:02:03]} Kh8 {[%emt 0:04:08]} 23. Rg3 {[%emt 0:06:36]} Bg8 {[%emt 0:06:08]} (23... Rfe8 $15) 24. Re2 {[%emt 0:08:04]} (24. e5 $11 Bh7 (24... Qxf4 $2 25. Qg6 $18) 25. Qd1 dxe5 (25... Qxf4 26. Rg4 $11) 26. fxe5 Nxe5 27. Bxe5 fxe5 28. Nc4) 24... Rfe8 {[%emt 0:05:33]} ({Black should play} 24... Rbe8 $17 25. Qd1 Re7) 25. Kh2 {[%emt 0:18:05]} (25. e5 $1 $15 Bh7 (25... fxe5 26. fxe5 Bh7 27. Qd1 $11) (25... Qxf4 $2 26. Qg6 $18) (25... dxe5 26. Bc3 $17) 26. Qd1 Qxf4 27. Rf3) 25... Re7 {[%emt 0:00:40]} (25... d5 $17 26. Bc3 Qb6) 26. Ree3 {[%emt 0:05:47]} (26. e5 $15 {feels stronger.} dxe5 (26... fxe5 27. fxe5 dxe5 28. Rge3 $17) 27. fxe5 Nxe5 28. Bxe5 fxe5 (28... Rxe5 $2 29. Rxe5 Bh7 30. Re4 $18) 29. Re4) 26... Rbe8 $1 $17 {[%emt 0:01:49]} 27. Bc3 {[%emt 0:01:32]} Qb6 {[%emt 0:00:05]} (27... Qb8 $142 $1 28. Nc4 (28. Bxa5 d5 $19) 28... Qa8) 28. Qb2 {[%emt 0:11:52]} (28. Nc4 $142 Bxc4 29. bxc4) 28... d5 {[%emt 0:03:28]} 29. exd5 {[%emt 0:00:57]} Rxe3 {[%emt 0:12:55]} 30. Rxe3 {[%emt 0:00:02]} Rxe3 {[%emt 0:00:07]} 31. Nc4 {[%emt 0:00:05]} Rxh3+ {[%emt 0:00:05]} 32. Kxh3 {[%emt 0:00:32]} Qb7 {[%emt 0:00:06]} 33. Nxa5 {[%emt 0:06:10]} Qxd5 {[%emt 0:00:05]} 34. Qd2 {[%emt 0:04:28]} Qe4 {[%emt 0:02:31]} 35. Kh2 {[%emt 0:01:26]} Nb6 {[%emt 0:00:04]} 36. Qf2 {[%emt 0:01:44]} Bd5 {[%emt 0:00:07]} 37. Qg3 {[%emt 0:01:00]} Qe2 {[%emt 0:06:46]} 38. f5 {[%emt 0:01:09]} Qc2 {[%emt 0:02:46]} 39. Be1 {[%emt 0:02:26]} Qe4 {[%emt 0:02:50]} 40. Bf2 {[%emt 0:01:06]} Qb4 {[%emt 0:00:37]} (40... Qxf5 $19 41. Bxc5 Na8) 41. Be1 $17 {[%emt 0:00:56] [#]} Qe4 {[%emt 0:00:06]} (41... Qd4 $1 $17 42. Qxc7 Qe4) 42. Bf2 $19 {[%emt 0:00:41]} Qc2 $2 {[%emt 0:00:46]} (42... Qxf5 $19 {White must now prevent ...Qc2.} 43. Bxc5 Na8) 43. Kg1 $2 {[%emt 0:00:51]} (43. Be1 $1 $11 {and White is okay.}) 43... Qd2 {[%emt 0:02:14]} (43... Qxf5 44. Qxc7 Qg4 45. Qb8+ Kh7 46. Qg3 Qd1+ 47. Kh2) 44. Be1 {[%emt 0:01:37]} Qd1 {[%emt 0:01:05]} 45. Kh2 {[%emt 0:00:24]} Qc2 {[%emt 0:01:25]} 46. Bf2 {[%emt 0:00:59]} Qxf5 {[%emt 0:00:32]} 47. Bxc5 {[%emt 0:00:18] [#]} Bxg2 {[%emt 0:00:11]} ({Black should try} 47... Nd7 $1 $19 {[%mdl 512]} 48. Bf2 (48. Bd4 Qe4) 48... Ne5) 48. Bf8 $1 $15 {[%emt 0:00:42]} g5 {[%emt 0:00:46]} 49. Kxg2 {[%emt 0:01:20]} Qxa5 {[%emt 0:00:09]} 50. Qxc7 {[%emt 0:00:07]} Qd5+ {[%emt 0:00:35]} 51. Kg1 {[%emt 0:00:29]} Nd7 {[%emt 0:01:09]} ({Not} 51... Qxb3 52. Qg7#) 52. Bd6 {[%emt 0:01:08]} Qd4+ {[%emt 0:01:13]} 53. Kf1 {[%emt 0:00:26]} Qd1+ {[%emt 0:00:46]} 54. Kf2 {[%emt 0:00:16]} Qd2+ {[%emt 0:00:32]} 55. Kf1 {[%emt 0:00:09]} Qd3+ {[%emt 0:00:54]} 56. Kg1 {[%emt 0:00:48]} Qe3+ {[%emt 0:00:26]} 57. Kg2 {[%emt 0:00:19]} Qe2+ {[%emt 0:01:19]} 58. Kg1 {[%emt 0:00:13]} Ne5 {[%emt 0:01:39]} 59. Bxe5 {[%emt 0:00:44]} fxe5 {[%emt 0:00:13]} 60. Qd8+ {[%emt 0:01:17]} Kg7 {[%emt 0:00:06]} 61. Qe7+ {[%emt 0:00:10]} Kg6 {[%emt 0:00:12]} 62. Qe6+ {[%emt 0:00:04]} Kg7 {[%emt 0:00:25]} 63. Qe7+ {[%emt 0:00:03]} 1/2-1/2

[Event "1000 GM Labor Day Super Swiss 2024"]
[Site "San Jose"]
[Date "2024.09.02"]
[Round "6.7"]
[White "Hevia Alejano, Carlos Antonio"]
[Black "Yim, Sung Ho"]
[Result "1/2-1/2"]
[Annotator "TA"]
[ECO "D00"]
[WhiteElo "2414"]
[BlackElo "2291"]
[PlyCount "43"]
[EventDate "2024.08.30"]
[EventType "swiss"]
[EventCountry "USA"]
[SourceTitle "playchess.com"]
[Source "ChessBase"]
[SourceQuality "1"]
[TimeControl "5400+30"]

{[%evp 9,43,0,1,0,0,-8,0,-12,-6,-12,13,0,0,0,4,0,18,0,18,0,0,0,-2,-11,0,-13,0,0,-12,-8,0,0,9,-9,-4,-13]} 1. d4 {[%emt 0:03:11]} Nf6 {[%emt 0:03:03]} 2. Bf4 {[%emt 0:00:55]} d5 {[%emt 0:02:02]} 3. e3 {[%emt 0:00:16]} e6 {[%emt 0:03:14]} 4. c3 {[%emt 0:00:52]} Bd6 {[%emt 0:02:46]} 5. Nd2 {[%emt 0:08:15]} c5 {[%emt 0:02:19] The position is equal.} 6. Bg3 {[%emt 0:04:06]} Qc7 {[%emt 0:02:24]} 7. Ngf3 {[%emt 0:01:49]} Nbd7 {[%emt 0:00:49]} 8. Bb5 {[%emt 0:08:02][%cal Ob2b4]} O-O {[%emt 0:01:23]} 9. O-O {[%emt 0:01:46]} e5 {[%emt 0:04:45]} 10. Bxd7 {[%emt 0:04:03]} Nxd7 {[%emt 0:03:07]} 11. e4 {[%emt 0:13:33] White wants to play Re1.} exd4 {[%emt 0:05:04]} 12. cxd4 {[%emt 0:05:14] [#] Hoping for e5.} Bxg3 {[%emt 0:07:31]} 13. hxg3 {[%emt 0:00:09]} cxd4 {[%emt 0:01:57]} 14. Nxd4 {[%emt 0:04:15]} Nf6 {[%emt 0:12:38]} 15. exd5 {[%emt 0:08:38]} Qc5 {[%emt 0:03:01]} 16. N2f3 {[%emt 0:02:19]} Qxd5 {[%emt 0:03:40]} 17. Re1 {[%emt 0:00:05]} Bg4 {[%emt 0:01:53]} 18. Qa4 {[%emt 0:00:16]} a6 {[%emt 0:13:56]} 19. Re5 {[%emt 0:04:40]} Qd7 {[%emt 0:00:23]} 20. Qb4 {[%emt 0:01:09]} Bxf3 {[%emt 0:05:10]} 21. Nxf3 {[%emt 0:03:22]} Rfe8 {[%emt 0:00:26] Repels Re7} 22. Rc1 {[%emt 0:02:58] An uneventful encounter.   Weighted Error Value: White=0.04 (flawless) /Black=0.04 (flawless) .  OK:         	White=6     	Black=8} 1/2-1/2